bitfinex/quotes_BTCUSD_20250418
["timestamp","ask_amount","ask_price","bid_price","bid_amount"]
[1744939581979,1e-08,84911.0,84908.0,0.01177745]
[1744939582186,0.01177704,84911.0,84909.0,0.01030406]
[1744939582395,1e-08,84911.0,84908.0,0.15310687]
[1744939582600,0.01177704,84911.0,84909.0,0.01030406]
[1744939583053,0.01177704,84911.0,84907.0,0.01177759]
[1744939583406,0.01177704,84911.0,84908.0,0.01030406]
[1744939583635,1e-08,84911.0,84909.0,0.14132777]
[1744939584059,1e-08,84911.0,84910.0,0.01027182]
[1744939586731,1e-08,84911.0,84910.0,0.35027182]
[1744939588681,1e-08,84911.0,84910.0,0.01027182]
[1744939589055,0.01177704,84911.0,84908.0,0.34]
[1744939589260,0.01177704,84911.0,84909.0,0.01027182]
[1744939590187,0.24731778,84911.0,84909.0,0.01027182]
[1744939590596,0.01177717,84910.0,84906.0,0.34]
[1744939590795,0.01177731,84909.0,84906.0,0.34]
[1744939593264,0.01177773,84906.0,84904.0,0.34]
[1744939593467,0.05917759,84907.0,84904.0,0.34]
[1744939595871,0.0474,84907.0,84904.0,0.34]
[1744939596205,0.01177745,84908.0,84904.0,0.34]
[1744939596725,0.01177759,84907.0,84904.0,0.34]
[1744939597784,0.01177759,84907.0,84901.0,0.14134075]
[1744939597785,0.01177786,84905.0,84902.0,0.34]
[1744939597984,0.01177773,84906.0,84902.0,0.34]
[1744939598219,0.01177773,84906.0,84904.0,0.34]
[1744939601150,0.01177773,84906.0,84904.0,0.12856295]
[1744939603879,0.000843,84925.0,84905.0,0.01454085]
[1744939604122,0.0008432,84915.0,84910.0,0.1413261]
[1744939605386,0.0008432,84915.0,84910.0,0.15156505]
[1744939607421,0.0008432,84915.0,84910.0,0.49156505]
[1744939607911,0.0008432,84915.0,84910.0,0.50021453]
[1744939612330,0.0008432,84915.0,84910.0,0.50121453]
[1744939613443,0.0008432,84915.0,84914.0,0.14131945]
[1744939613444,0.00080321,84915.0,84914.0,0.14131945]
[1744939613570,0.00088257,84915.0,84914.0,0.15821528]
[1744939613775,0.00088257,84915.0,84914.0,0.16602825]
[1744939615552,0.000843,84925.0,84914.0,0.50602825]
[1744939615756,0.0008436,84929.0,84928.0,0.48129615]
[1744939616113,0.0008436,84929.0,84928.0,0.49141622]
[1744939617260,0.0008432,84934.0,84933.0,0.35454085]
[1744939617415,0.00092257,84934.0,84933.0,0.47398876]
[1744939617617,0.00092257,84934.0,84933.0,0.48387009]
[1744939619481,0.00092257,84934.0,84933.0,0.61695009]
[1744939621810,0.00092257,84934.0,84933.0,0.61795009]
[1744939622024,0.00092257,84934.0,84933.0,0.62690206]
[1744939622376,0.00013837,84944.0,84943.0,0.4812712]
[1744939622789,0.00013837,84944.0,84943.0,0.49113609]
[1744939624466,0.00013837,84944.0,84943.0,0.34986489]
[1744939624692,0.09989984,84944.0,84943.0,0.34986489]
[1744939624879,0.09989984,84944.0,84943.0,0.00986489]
[1744939625081,0.09989984,84944.0,84943.0,0.01981905]
[1744939625434,0.0461,84935.0,84933.0,0.001]
[1744939625776,0.0461,84935.0,84934.0,0.00985979]
[1744939626167,0.04786147,84935.0,84934.0,0.02901198]
[1744939626479,0.09716147,84935.0,84933.0,0.001]
[1744939626689,0.23547695,84934.0,84933.0,0.001]
[1744939626895,0.23547695,84934.0,84933.0,0.02000054]
[1744939627049,0.23723842,84934.0,84933.0,0.02000054]
[1744939627250,0.23723842,84934.0,84933.0,0.001]
[1744939628015,0.28693842,84934.0,84933.0,0.001]
[1744939628301,0.28517695,84934.0,84933.0,0.001]
[1744939629504,0.33467695,84934.0,84933.0,0.001]
[1744939636223,0.0495,84943.0,84938.0,0.34]
[1744939636451,0.06303407,84943.0,84938.0,0.34]
[1744939636625,0.29848836,84943.0,84939.0,0.00994931]
[1744939636785,0.29672689,84943.0,84939.0,0.00994931]
[1744939636988,0.0135342,84942.0,84938.0,0.35177329]
[1744939637210,0.0135342,84942.0,84940.0,0.00994931]
[1744939637411,0.0135342,84942.0,84939.0,0.00994622]
[1744939637612,0.01177287,84941.0,84938.0,0.34]
[1744939637952,0.01177287,84941.0,84939.0,0.00994313]
[1744939638356,0.01177287,84941.0,84940.0,0.00828594]
[1744939638695,0.01177273,84942.0,84938.0,0.01177329]
[1744939638902,0.01177273,84942.0,84939.0,0.00828903]
[1744939639108,0.01177273,84942.0,84937.0,0.15305461]
[1744939639310,0.01177273,84942.0,84938.0,0.00828903]
[1744939639909,0.00176147,84941.0,84938.0,0.00828903]
[1744939640601,0.24899457,84941.0,84938.0,0.00828903]
[1744939640909,0.01177315,84939.0,84936.0,0.34]
[1744939641108,0.00176147,84938.0,84937.0,0.00824662]
[1744939641931,0.00176147,84938.0,84937.0,0.4895278]
[1744939642124,0.01353448,84940.0,84938.0,0.34]
[1744939642244,0.01353448,84940.0,84939.0,0.00824971]
[1744939642446,0.01353448,84940.0,84938.0,0.34]
[1744939642660,0.00176147,84940.0,84939.0,0.00824971]
[1744939642886,0.00176147,84940.0,84938.0,0.34]
[1744939643238,0.00176147,84940.0,84935.0,0.15305821]
[1744939643239,0.00176147,84940.0,84939.0,0.00824971]
[1744939643557,0.01177315,84939.0,84936.0,0.34]
[1744939643941,0.00176147,84938.0,84936.0,0.34]
[1744939644838,0.01353476,84938.0,84934.0,0.34]
[1744939645218,0.01353476,84938.0,84934.0,0.35177384]
[1744939645558,0.00176147,84938.0,84935.0,0.14128451]
[1744939645765,0.00176147,84940.0,84936.0,0.4812814]
[1744939645970,0.01177315,84939.0,84936.0,0.48952493]
[1744939647602,0.01177315,84939.0,84936.0,0.00824353]
[1744939648011,0.01177329,84938.0,84934.0,0.35177384]
[1744939648219,0.01353448,84940.0,84937.0,0.00824662]
[1744939648361,0.01177315,84939.0,84936.0,0.34]
[1744939648572,0.01177315,84939.0,84938.0,0.00824971]
[1744939648808,0.24723672,84939.0,84937.0,0.00824662]
[1744939649215,0.24723672,84939.0,84938.0,0.00824971]
[1744939649623,0.01177343,84937.0,84934.0,0.34]
[1744939650143,0.01177343,84937.0,84935.0,0.00824044]
[1744939650343,0.01177329,84938.0,84936.0,0.34]
[1744939650594,0.01177329,84938.0,84937.0,0.00824353]
[1744939651796,0.01177329,84938.0,84935.0,0.34]
[1744939652115,0.01177329,84938.0,84936.0,0.00825122]
[1744939653016,0.24723672,84939.0,84936.0,0.00825122]
[1744939653257,0.01177315,84939.0,84936.0,0.00825122]
[1744939653410,0.01353462,84939.0,84936.0,0.00825122]
[1744939653975,0.01177343,84937.0,84934.0,0.34]
[1744939655307,0.00176147,84939.0,84938.0,0.14127952]
[1744939655523,0.28161177,84958.0,84950.0,0.35177163]
[1744939655524,0.01177079,84956.0,84950.0,0.35177163]
[1744939655654,0.01177066,84957.0,84952.0,0.34]
[1744939655866,0.01177066,84957.0,84954.0,0.34]
[1744939656067,0.05751647,84958.0,84954.0,0.34]
[1744939656310,0.01177066,84957.0,84954.0,0.34]
[1744939658009,0.04574595,84958.0,84955.0,0.14125125]
[1744939659452,0.04574595,84958.0,84954.0,0.34]
[1744939659656,0.01177066,84957.0,84954.0,0.34]
[1744939660006,0.05751647,84958.0,84954.0,0.34]
[1744939660314,0.01177066,84957.0,84954.0,0.34]
[1744939661809,0.01177093,84955.0,84952.0,0.34]
[1744939662012,0.01177079,84956.0,84952.0,0.34]
[1744939662221,0.23542429,84953.0,84952.0,0.34]
[1744939663025,0.01177135,84952.0,84948.0,0.34]
[1744939663227,0.01177135,84952.0,84948.0,0.3487536]
[1744939663835,0.2471955,84953.0,84950.0,0.34]
[1744939665024,0.01177149,84951.0,84948.0,0.34]
[1744939665208,0.2354326,84950.0,84948.0,0.34]
[1744939666195,0.24720423,84950.0,84944.0,0.34]
[1744939666391,0.01177176,84949.0,84946.0,0.34]
[1744939670987,0.01177163,84950.0,84946.0,0.34]
[1744939671332,0.01177163,84950.0,84946.0,0.341]
[1744939671528,0.01177176,84949.0,84946.0,0.001]
[1744939672083,0.23544092,84947.0,84946.0,0.001]
[1744939672242,0.0465,84948.0,84946.0,0.001]
[1744939672243,0.28194078,84948.0,84946.0,0.001]
[1744939672448,0.0461,84947.0,84946.0,0.001]
[1744939679714,0.01177079,84956.0,84951.0,0.01177149]
[1744939679877,0.01177163,84950.0,84947.0,0.34]
[1744939680089,0.01177149,84951.0,84947.0,0.34]
[1744939680286,0.01177149,84951.0,84948.0,0.00809429]
[1744939680464,0.24720158,84951.0,84948.0,0.00809429]
[1744939680629,0.01177149,84951.0,84948.0,0.00809429]
[1744939681032,0.23543537,84949.0,84948.0,0.00809429]
[1744939681608,0.24720713,84949.0,84948.0,0.00809429]
[1744939681889,0.24720713,84949.0,84948.0,0.001]
[1744939682102,0.24720713,84949.0,84948.0,0.00909429]
[1744939682306,0.24720713,84949.0,84948.0,0.001]
[1744939682839,0.24720713,84949.0,84948.0,0.00909429]
[1744939683041,0.24720713,84949.0,84948.0,0.001]
[1744939683162,0.24720713,84949.0,84948.0,0.00909429]
[1744939685102,0.01177038,84959.0,84954.0,0.15302242]
[1744939685303,0.2354132,84957.0,84955.0,0.34]
[1744939685475,0.01177052,84958.0,84955.0,0.34810359]
[1744939685683,0.24718366,84958.0,84955.0,0.34810359]
[1744939686326,0.24718366,84958.0,84955.0,0.00810359]
[1744939686500,0.01177052,84958.0,84955.0,0.00810359]
[1744939686819,0.01177066,84957.0,84956.0,0.00809741]
[1744939687168,0.01177079,84956.0,84953.0,0.34]
[1744939687517,0.01177079,84956.0,84954.0,0.00810049]
[1744939687943,0.23541875,84955.0,84954.0,0.00810049]
[1744939688140,0.23542429,84953.0,84951.0,0.34]
[1744939688375,0.01177107,84954.0,84951.0,0.34]
[1744939688478,0.23542429,84953.0,84951.0,0.34]
[1744939689487,0.01177121,84953.0,84948.0,0.3537719]
[1744939690201,0.01177135,84952.0,84948.0,0.342]
[1744939691532,0.01177149,84951.0,84948.0,0.342]
[1744939694032,0.01190488,84961.0,84954.0,0.01177107]
[1744939694515,0.01177038,84959.0,84954.0,0.01177107]
[1744939694894,0.01177038,84959.0,84955.0,0.00807068]
[1744939695102,0.01177038,84959.0,84957.0,0.34]
[1744939695531,0.01177038,84959.0,84958.0,0.00807068]
[1744939695911,0.01177038,84959.0,84957.0,0.34]
[1744939696135,0.01177038,84959.0,84958.0,0.00807377]
[1744939696550,0.01177038,84959.0,84957.0,0.34]
[1744939696731,0.01177038,84959.0,84958.0,0.00807377]
[1744939696946,0.01177038,84959.0,84957.0,0.34]
[1744939697257,0.01177038,84959.0,84958.0,0.00807068]
[1744939697561,0.01177038,84959.0,84957.0,0.34]
[1744939697984,0.01177038,84959.0,84958.0,0.00807068]
[1744939698468,0.01177038,84959.0,84958.0,0.00807377]
[1744939698685,0.01177038,84959.0,84957.0,0.34]
[1744939698827,0.01177038,84959.0,84958.0,0.00807377]
[1744939699241,0.01177038,84959.0,84954.0,0.35177107]
[1744939699442,0.01177038,84959.0,84958.0,0.00807377]
[1744939699682,0.01177038,84959.0,84955.0,0.01177093]
[1744939699880,0.24717804,84959.0,84958.0,0.00807377]
[1744939700139,0.01177052,84958.0,84954.0,0.35177107]
[1744939702091,0.23542358,84954.0,84952.0,0.34]
[1744939704921,0.23542358,84954.0,84950.0,0.01177163]
[1744939704922,0.01177093,84955.0,84951.0,0.35177149]
[1744939706042,0.24719027,84955.0,84951.0,0.35177149]
[1744939706423,0.01177107,84954.0,84951.0,0.34]
[1744939706615,0.23542429,84953.0,84951.0,0.34]
[1744939707415,0.24720277,84951.0,84948.0,0.002]
[1744939707614,0.23543537,84949.0,84948.0,0.002]
[1744939708006,0.32693537,84949.0,84948.0,0.002]
[1744939709447,0.26305584,84980.0,84948.0,0.002]
[1744939709448,0.0457,84957.0,84954.0,0.34]
[1744939709653,0.05757052,84958.0,84954.0,0.34]
[1744939709953,0.05757052,84958.0,84955.0,0.00803504]
[1744939711745,0.05757052,84958.0,84955.0,0.00903504]
[1744939714621,0.0458,84958.0,84956.0,0.14124958]
[1744939714791,0.01177038,84959.0,84955.0,0.00903504]
[1744939714927,0.01177038,84959.0,84957.0,0.00804109]
[1744939715139,0.01177038,84959.0,84956.0,0.00804418]
[1744939715384,0.24717806,84959.0,84957.0,0.00804418]
[1744939715789,0.01177052,84958.0,84955.0,0.001]
[1744939717472,0.01177038,84959.0,84956.0,0.34]
[1744939718204,0.24717936,84959.0,84956.0,0.34]
[1744939718828,0.00013478,84961.0,84960.0,0.34]
[1744939722708,0.00013478,84961.0,84958.0,0.34]
[1744939722921,0.00013478,84961.0,84960.0,0.34]
[1744939725307,0.00013478,84961.0,84960.0,0.34793797]
[1744939731459,0.00013478,84961.0,84960.0,0.34893797]
[1744939740428,0.00013478,84961.0,84960.0,0.1272225]
[1744939740614,0.00013478,84961.0,84960.0,0.00893797]
[1744939743360,0.00013478,84961.0,84960.0,0.00643736]
[1744939743684,0.00013478,84961.0,84958.0,0.15301678]
[1744939743870,0.00013478,84961.0,84960.0,0.00643736]
[1744939744020,0.00013478,84961.0,84959.0,0.14124442]
[1744939744361,0.00013478,84961.0,84960.0,0.00643427]
[1744939745286,0.00013478,84961.0,84960.0,0.34643427]
[1744939756019,0.00013478,84961.0,84960.0,0.00643427]
[1744939756406,0.00013478,84961.0,84960.0,0.34]
[1744939756615,0.00013478,84961.0,84960.0,0.3464418]
[1744939759246,0.00013478,84961.0,84960.0,0.0064418]
[1744939759620,0.00013478,84961.0,84958.0,0.35177052]
[1744939759830,0.00013478,84961.0,84960.0,0.006453]
[1744939760019,0.00013478,84961.0,84959.0,0.00644991]
[1744939760223,0.00013478,84961.0,84960.0,0.006453]
[1744939760422,0.00013478,84961.0,84958.0,0.01177052]
[1744939760623,0.00013478,84961.0,84959.0,0.00644991]
[1744939762074,0.00013478,84961.0,84959.0,0.14769412]
[1744939762379,0.00013478,84961.0,84960.0,0.34]
[1744939762803,0.00013478,84961.0,84960.0,0.346453]
[1744939772986,0.000843,84968.0,84960.0,0.346453]
[1744939772987,0.000843,84968.0,84967.0,0.4812313]
[1744939773390,0.000843,84968.0,84967.0,0.48764001]
[1744939778286,0.0128075,84977.0,84968.0,0.35454085]
[1744939778564,0.0128075,84977.0,84976.0,0.48121634]
[1744939778923,0.0128075,84977.0,84976.0,0.48756565]
[1744939779443,0.0128075,84977.0,84976.0,0.50334824]
[1744939780944,0.0128075,84977.0,84976.0,0.51233255]
[1744939783470,0.002,84979.0,84978.0,0.48121301]
[1744939783675,0.00104743,84979.0,84978.0,0.48748673]
[1744939783875,0.00095257,84979.0,84978.0,0.62032673]
[1744939784122,0.01218735,84991.0,84988.0,0.34]
[1744939784385,0.01263651,84991.0,84988.0,0.35176636]
[1744939784609,0.00087056,84991.0,84989.0,0.00628622]
[1744939789565,0.00087056,84991.0,84988.0,0.35176636]
[1744939794123,0.00087056,84991.0,84990.0,0.34]
[1744939798051,0.0004213,84992.0,84991.0,0.49573227]
[1744939798255,0.00013468,84995.0,84991.0,0.71088018]
[1744939798389,0.0015385,85009.0,85008.0,0.48116318]
[1744939800413,0.0015385,85009.0,85008.0,0.4728]
[1744939800662,0.0015385,85009.0,85008.0,0.34870123]
[1744939800663,0.0465385,85009.0,85008.0,0.34870123]
[1744939800871,0.0969385,85009.0,85008.0,0.34]
[1744939801662,0.0959385,85009.0,85008.0,0.34]
[1744939803572,0.0509385,85009.0,85008.0,0.34]
[1744939803744,0.0015385,85009.0,85008.0,0.34]
[1744939810056,0.0969385,85009.0,85008.0,0.34]
[1744939810273,0.23530242,84997.0,84994.0,0.14452553]
[1744939810469,0.01176553,84994.0,84990.0,0.18428276]
[1744939810690,0.01176553,84994.0,84990.0,0.01176609]
[1744939811107,0.01176581,84992.0,84989.0,0.01176622]
[1744939811317,0.01176581,84992.0,84988.0,0.34]
[1744939811318,0.24708498,84991.0,84988.0,0.34]
[1744939811467,0.23532457,84989.0,84988.0,0.34]
[1744939811878,0.23534672,84981.0,84980.0,0.17251667]
[1744939812088,0.01176705,84983.0,84982.0,0.00044916]
[1744939812734,0.24711041,84983.0,84982.0,0.00044916]
[1744939815214,0.29211041,84983.0,84982.0,0.00044916]
[1744939821858,0.29211041,84983.0,84982.0,0.00044916]
[1744939822960,0.01176664,84986.0,84982.0,0.00044916]
[1744939823096,0.01176678,84985.0,84982.0,0.00044916]
[1744939824254,0.23533841,84984.0,84982.0,0.00044916]
[1744939826683,0.23533841,84984.0,84973.0,0.01261084]
[1744939826684,0.24712569,84977.0,84973.0,0.01176844]
[1744939826956,0.0463,84975.0,84973.0,0.00013467]
[1744939827654,0.0463,84975.0,84973.0,0.00898976]
[1744939828995,0.01176802,84976.0,84973.0,0.00898976]
[1744939829614,0.01176802,84976.0,84973.0,0.0242917]
[1744939829751,0.01176802,84976.0,84973.0,0.00013467]
[1744939831432,0.01176802,84976.0,84973.0,0.02058583]
[1744939831763,0.01176775,84978.0,84974.0,0.3517683]
[1744939832099,0.01176789,84977.0,84974.0,0.3467683]
[1744939833611,0.01176789,84977.0,84974.0,0.0117683]
[1744939837936,0.01176789,84977.0,84974.0,0.3517683]
[1744939840893,0.01176789,84977.0,84973.0,0.03606713]
[1744939842296,0.24712859,84976.0,84973.0,0.02429869]
[1744939842486,0.23536356,84975.0,84973.0,0.02429869]
[1744939842696,0.0479,84974.0,84973.0,0.02429869]
[1744939843955,0.01176885,84970.0,84965.0,0.35088769]
[1744939844159,0.01176913,84968.0,84963.0,0.15300762]
[1744939844512,0.01176913,84968.0,84964.0,0.01176969]
[1744939845804,0.01176913,84968.0,84964.0,0.0206745]
[1744939845953,0.01176913,84968.0,84964.0,0.3606745]
[1744939846138,0.01176913,84968.0,84964.0,0.35176969]
[1744939849585,0.23539104,84965.0,84964.0,0.02349733]
[1744939849803,0.24717777,84960.0,84957.0,0.34]
[1744939850230,0.23540766,84959.0,84957.0,0.34]
[1744939850604,0.0942,84958.0,84957.0,0.36376194]
[1744939850819,0.0942,84958.0,84957.0,0.02376194]
[1744939851019,0.0952,84958.0,84957.0,0.01489697]
[1744939851204,0.01177149,84951.0,84948.0,0.0008424]
[1744939851648,0.2354326,84950.0,84948.0,0.01600291]
[1744939851844,0.2354326,84950.0,84948.0,0.0008424]
[1744939853258,0.2354326,84950.0,84948.0,0.01590886]
[1744939854388,0.24720357,84951.0,84948.0,0.01590886]
[1744939854588,0.23543537,84949.0,84948.0,0.01590886]
[1744939861387,0.28523537,84949.0,84948.0,0.01590886]
[1744939862452,0.33443537,84949.0,84948.0,0.01590886]
[1744939863567,0.45488328,84949.0,84948.0,0.01590886]
[1744939863797,0.45488328,84949.0,84948.0,0.0008424]
[1744939880995,0.2354825,84932.0,84931.0,0.34]
[1744939881420,0.2354825,84932.0,84931.0,0.341]
[1744939882232,0.2354825,84932.0,84931.0,0.34113478]
[1744939883492,0.2354825,84932.0,84931.0,0.35632409]
[1744939884910,0.2354825,84932.0,84931.0,0.14066793]
[1744939886598,0.2354825,84932.0,84931.0,0.01632409]
[1744939887917,0.2354825,84932.0,84931.0,0.01532409]
[1744939888045,0.01177467,84928.0,84925.0,0.01177509]
[1744939888264,0.01177467,84928.0,84925.0,0.01185446]
[1744939889818,0.01177467,84928.0,84925.0,0.02060371]
[1744939892640,0.01177467,84928.0,84925.0,0.02060371]
[1744939893226,0.23549636,84927.0,84925.0,0.00882862]
[1744939904868,0.01277467,84928.0,84925.0,0.00882862]
[1744939904869,0.01277467,84928.0,84925.0,0.36060371]
[1744939905073,0.01277467,84928.0,84925.0,0.02060371]
[1744939905277,0.001,84928.0,84927.0,0.34]
[1744939906584,0.001,84928.0,84925.0,0.02060371]
[1744939907410,0.001,84928.0,84925.0,0.00882862]
[1744939907605,0.23549636,84927.0,84925.0,0.00882862]
[1744939909831,0.01277467,84928.0,84925.0,0.00882862]
[1744939910037,0.23549636,84927.0,84925.0,0.00882862]
[1744939911366,0.23649636,84927.0,84925.0,0.00882862]
[1744939911895,0.001,84927.0,84925.0,0.00882862]
[1744939912700,0.23649643,84927.0,84925.0,0.00882862]
[1744939915348,0.001,84927.0,84925.0,0.00882862]
[1744939920381,0.23649879,84927.0,84925.0,0.00882862]
[1744939920533,0.001,84927.0,84925.0,0.00882862]
[1744939921590,0.24726946,84928.0,84925.0,0.00882862]
[1744939921733,0.001,84927.0,84925.0,0.00882862]
[1744939926804,0.001,84927.0,84926.0,0.34]
[1744939935535,0.23547138,84937.0,84926.0,0.34]
[1744939935536,0.01177218,84946.0,84940.0,0.01177301]
[1744939935688,0.0117719,84948.0,84943.0,0.3517726]
[1744939936218,0.01177218,84946.0,84943.0,0.3517726]
[1744939940681,0.01177246,84944.0,84940.0,0.34]
[1744939940882,0.01177246,84944.0,84940.0,0.35177301]
[1744939948024,0.0117726,84943.0,84940.0,0.35177301]
[1744939951411,0.0117726,84943.0,84940.0,0.01177301]
[1744939952529,0.23544359,84947.0,84919.0,0.1]
[1744939952530,0.094,84942.0,84922.0,0.0008424]
[1744939952713,0.23549636,84927.0,84922.0,0.0008424]
[1744939952920,0.23549636,84927.0,84925.0,7.937e-05]
[1744939953156,0.35494427,84927.0,84925.0,7.937e-05]
[1744939953467,0.40304427,84927.0,84925.0,7.937e-05]
[1744939955143,0.44894427,84927.0,84925.0,7.937e-05]
[1744939958703,0.094,84922.0,84921.0,0.0026854]
[1744939958909,0.21344791,84922.0,84921.0,0.0026854]
[1744939968396,0.21344791,84922.0,84913.0,0.34]
[1744939968397,0.01177648,84915.0,84913.0,0.34]
[1744939968771,0.24730117,84917.0,84913.0,0.35177675]
[1744939968772,0.0117762,84917.0,84913.0,0.35177675]
[1744939968976,0.01177634,84916.0,84913.0,0.35177675]
[1744939969917,0.01177634,84916.0,84913.0,0.01177675]
[1744939970117,0.01177634,84916.0,84913.0,0.01277675]
[1744939971483,0.0117762,84917.0,84913.0,0.01277675]
[1744939975088,0.0117762,84917.0,84913.0,0.1540975]
[1744939975410,0.0117762,84917.0,84914.0,0.01177662]
[1744939976815,0.01177634,84916.0,84913.0,0.001]
[1744939977021,0.23552964,84915.0,84913.0,0.001]
[1744939977953,0.0485,84914.0,84913.0,0.001]
[1744939978154,0.21694791,84914.0,84913.0,0.001]
[1744939981723,0.23553519,84913.0,84911.0,0.01719138]
[1744939981854,0.11944791,84912.0,84911.0,0.01719138]
[1744939982057,0.11944791,84912.0,84907.0,0.01177759]
[1744939982058,0.01177717,84910.0,84907.0,0.01177759]
[1744939982998,0.01177717,84910.0,84907.0,0.02868453]
[1744939983363,0.01177717,84910.0,84907.0,0.01177759]
[1744939983877,0.01177731,84909.0,84906.0,0.01177773]
[1744939984062,0.01177731,84909.0,84906.0,0.01185709]
[1744939986312,0.01177731,84909.0,84906.0,0.02882075]
[1744939988170,0.01177717,84910.0,84907.0,0.35177759]
[1744939988524,0.01177675,84913.0,84909.0,0.35177731]
[1744939989490,0.01177675,84913.0,84909.0,0.01177731]
[1744939990681,0.23552256,84918.0,84911.0,0.01177703]
[1744939990882,0.24729052,84921.0,84916.0,0.35177634]
[1744939991156,0.23552132,84918.0,84916.0,0.34]
[1744939992867,0.24729738,84918.0,84914.0,0.35177662]
[1744939993069,0.01177592,84919.0,84916.0,0.35177634]
[1744939994610,0.01177565,84921.0,84916.0,0.01177634]
[1744939994815,0.01177481,84927.0,84923.0,0.01177537]
[1744939995017,0.01177523,84924.0,84920.0,0.01177578]
[1744939995336,0.01177523,84924.0,84921.0,0.01177565]
[1744939995532,0.01177523,84924.0,84921.0,0.0207949]
[1744939997047,0.01177523,84924.0,84921.0,0.00901925]
[1744939997294,0.01177523,84924.0,84920.0,0.15308365]
[1744939998336,0.24727409,84926.0,84921.0,0.01177565]
[1744939998931,0.01177495,84926.0,84918.0,0.34]
[1744939999548,0.01177495,84926.0,84921.0,0.01177565]
[1744940000030,0.01177495,84926.0,84921.0,0.35177565]
[1744940000650,0.01177509,84925.0,84921.0,0.35177565]
[1744940002335,0.01177495,84926.0,84921.0,0.46953087]
[1744940002517,0.01177495,84926.0,84922.0,0.01177551]
[1744940002714,0.01177495,84926.0,84921.0,0.46953087]
[1744940002928,0.01177509,84925.0,84921.0,0.34]
[1744940004540,0.01177537,84923.0,84917.0,0.00875678]
[1744940004690,0.01177537,84923.0,84916.0,0.34]
[1744940004691,0.2355241,84917.0,84916.0,0.34]
[1744940004870,0.2845241,84917.0,84916.0,0.34]
[1744940005461,0.01177578,84920.0,84916.0,0.35177634]
[1744940005659,0.01177578,84920.0,84917.0,0.0117762]
[1744940006070,0.01177606,84918.0,84914.0,0.36042669]
[1744940008590,0.01177537,84923.0,84916.0,0.01177634]
[1744940008799,0.01177565,84921.0,84918.0,0.34]
[1744940010138,0.24729155,84920.0,84916.0,0.35177634]
[1744940011251,0.24729155,84920.0,84915.0,0.11776424]
[1744940011657,0.24729155,84920.0,84916.0,0.01177634]
[1744940012661,0.01177592,84919.0,84916.0,0.01177634]
[1744940014266,0.01177592,84919.0,84916.0,0.35177634]
[1744940014473,0.01177578,84920.0,84917.0,0.0117762]
[1744940017165,0.23552645,84917.0,84914.0,0.34865007]
[1744940017557,0.23552964,84915.0,84914.0,0.34865007]
[1744940017741,0.33002964,84915.0,84914.0,0.34865007]
[1744940018237,0.33002964,84915.0,84914.0,0.00865007]
[1744940018612,0.23555178,84908.0,84904.0,0.0301716]
[1744940019183,0.23555178,84908.0,84904.0,0.0183936]
[1744940020664,0.23555178,84908.0,84906.0,0.02695468]
[1744940020869,0.23555178,84908.0,84906.0,0.00107936]
[1744940022232,0.23555178,84908.0,84906.0,0.01814377]
[1744940022379,0.23555178,84908.0,84906.0,0.00107936]
[1744940023635,0.23555178,84908.0,84906.0,0.01009721]
[1744940025264,0.23555178,84908.0,84906.0,0.03149534]
[1744940027100,0.24732607,84909.0,84906.0,0.03149534]
[1744940027498,0.01177703,84911.0,84906.0,0.03149534]
[1744940027825,0.01177731,84909.0,84906.0,0.03149534]
[1744940027961,0.24731803,84911.0,84908.0,0.34]
[1744940028193,0.2473236,84909.0,84906.0,0.03149534]
[1744940028645,0.01177731,84909.0,84906.0,0.03149534]
[1744940031267,0.01177731,84909.0,84906.0,0.03049534]
[1744940031427,0.01177731,84909.0,84906.0,0.04227307]
[1744940032791,0.24730904,84914.0,84910.0,0.01177717]
[1744940032956,0.24729464,84919.0,84915.0,0.01177648]
[1744940033330,0.24730612,84915.0,84911.0,0.34]
[1744940033716,0.01177662,84914.0,84911.0,0.34]
[1744940035513,0.01177689,84912.0,84909.0,0.35177731]
[1744940040399,0.01177662,84914.0,84909.0,0.35177731]
[1744940040567,0.01177662,84914.0,84909.0,0.01177731]
[1744940040999,0.01177675,84913.0,84909.0,0.35177731]
[1744940041144,0.01177662,84914.0,84910.0,0.01177717]
[1744940041595,0.01177675,84913.0,84910.0,0.01177717]
[1744940043636,0.01177648,84915.0,84911.0,0.35177703]
[1744940043813,0.01177662,84914.0,84911.0,0.35177703]
[1744940044532,0.01177648,84915.0,84912.0,0.01177689]
[1744940044736,0.01177634,84916.0,84913.0,0.01177675]
[1744940044957,0.01177592,84919.0,84915.0,0.01177648]
[1744940045276,0.01177606,84918.0,84915.0,0.01177648]
[1744940045498,0.0117762,84917.0,84914.0,0.34]
[1744940049255,0.01177565,84921.0,84917.0,0.0117762]
[1744940049390,0.01177592,84919.0,84916.0,0.35177634]
[1744940050803,0.01177551,84922.0,84919.0,0.01177592]
[1744940051012,0.01177578,84920.0,84916.0,0.46953859]
[1744940051787,0.01177551,84922.0,84918.0,0.12953632]
[1744940051980,0.01177551,84922.0,84918.0,0.01177606]
[1744940052195,0.01177565,84921.0,84918.0,0.01177606]
[1744940053005,0.01177426,84931.0,84923.0,0.34]
[1744940053211,0.06137384,84934.0,84928.0,0.34]
[1744940053435,0.24726217,84931.0,84928.0,0.34]
[1744940053568,0.23549082,84929.0,84928.0,0.34]
[1744940054237,0.01177426,84931.0,84928.0,0.01177467]
[1744940054581,0.0117744,84930.0,84927.0,0.35177481]
[1744940055244,0.01177426,84931.0,84927.0,0.35177481]
[1744940055423,0.0117744,84930.0,84927.0,0.35177481]
[1744940057701,0.0476,84935.0,84933.0,0.34]
[1744940057893,0.01177329,84938.0,84934.0,0.01177384]
[1744940058067,0.01177343,84937.0,84933.0,0.34]
[1744940058281,0.01177343,84937.0,84933.0,0.35177398]
[1744940058996,0.01177329,84938.0,84934.0,0.01177384]
[1744940060063,0.01177343,84937.0,84934.0,0.01177384]
[1744940061869,0.01177343,84937.0,84934.0,0.12951228]
[1744940062270,0.01177329,84938.0,84935.0,0.0117737]
[1744940062482,0.06137301,84940.0,84937.0,0.01177343]
[1744940063082,0.01177315,84939.0,84934.0,0.02043098]
[1744940063260,0.01177315,84939.0,84934.0,0.00865714]
[1744940063261,0.01177343,84937.0,84934.0,0.00865714]
[1744940063476,0.01177357,84936.0,84932.0,0.01177412]
[1744940064468,0.2472511,84934.0,84931.0,0.34]
[1744940064669,0.01177398,84933.0,84930.0,0.0117744]
[1744940064882,0.01177398,84933.0,84930.0,0.3517744]
[1744940065516,0.2472511,84934.0,84930.0,0.36071456]
[1744940066067,0.2472511,84934.0,84930.0,0.00894016]
[1744940066268,0.2472511,84934.0,84930.0,0.34894016]
[1744940066426,0.2472511,84934.0,84930.0,0.3517744]